[Event "Titled Tuesday Blitz February 01 B 2022"]
[White "Fishbein, Alexander"]
[Black "Nesterov, Arseniy"]
[WhiteFideId "2000377"]
[BlackFideId "24198455"]
[WhiteElo "2442"]
[BlackElo "2489"]
[Result "0-1"]
[Round "04"]
[TimeControl "180+1"]
[Date "2022.02.01"]
[WhiteClock "0:00:04"]
[BlackClock "0:00:11"]

1. e4 {[%clk 0:03:00]}  e5 {[%clk 0:03:00]} 2. Nf3 {[%clk 0:02:58]}  Nc6 {[%clk 0:03:00]} 3. Bb5 {[%clk 0:02:57]}  a6 {[%clk 0:03:01]} 4. Ba4 {[%clk 0:02:57]}  b5 {[%clk 0:03:01]} 5. Bb3 {[%clk 0:02:57]}  Na5 {[%clk 0:03:02]} 6. d4 {[%clk 0:02:53]}  exd4 {[%clk 0:03:02]} 7. Nxd4 {[%clk 0:02:51]}  Bb7 {[%clk 0:03:02]} 8. c4 {[%clk 0:02:42]}  bxc4 {[%clk 0:02:50]} 9. Bc2 {[%clk 0:02:40]}  Bc5 {[%clk 0:02:48]} 10. O-O {[%clk 0:02:39]}  Ne7 {[%clk 0:02:46]} 11. Nc3 {[%clk 0:02:35]}  O-O {[%clk 0:02:44]} 12. Be3 {[%clk 0:02:32]}  d6 {[%clk 0:02:41]} 13. Qh5 {[%clk 0:02:22]}  Ng6 {[%clk 0:02:37]} 14. Na4 {[%clk 0:02:13]}  Bxd4 {[%clk 0:02:29]} 15. Bxd4 {[%clk 0:02:12]}  Nc6 {[%clk 0:02:30]} 16. Be3 {[%clk 0:02:08]}  Nb4 {[%clk 0:02:10]} 17. Bb1 {[%clk 0:01:57]}  Nd3 {[%clk 0:02:09]} 18. Nc3 {[%clk 0:01:52]}  Nxb2 {[%clk 0:02:03]} 19. f4 {[%clk 0:01:50]}  Qf6 {[%clk 0:01:46]} 20. e5 {[%clk 0:01:35]}  dxe5 {[%clk 0:01:45]} 21. f5 {[%clk 0:01:35]}  Nf4 {[%clk 0:01:43]} 22. Qg4 {[%clk 0:01:14]}  Nxg2 {[%clk 0:01:19]} 23. Bc5 {[%clk 0:01:01]}  Nf4 {[%clk 0:00:58]} 24. Be4 {[%clk 0:00:50]}  Bxe4 {[%clk 0:00:31]} 25. Nxe4 {[%clk 0:00:50]}  Qc6 {[%clk 0:00:24]} 26. Rae1 {[%clk 0:00:48]}  f6 {[%clk 0:00:18]} 27. Bxf8 {[%clk 0:00:46]}  Rxf8 {[%clk 0:00:19]} 28. Re3 {[%clk 0:00:32]}  Nbd3 {[%clk 0:00:19]} 29. Rg3 {[%clk 0:00:27]}  Rf7 {[%clk 0:00:17]} 30. Qf3 {[%clk 0:00:20]}  h6 {[%clk 0:00:08]} 31. h4 {[%clk 0:00:16]}  c3 {[%clk 0:00:08]} 32. Nxc3 {[%clk 0:00:10]}  Qxc3 {[%clk 0:00:09]} 33. Kh2 {[%clk 0:00:08]}  Qc2+ {[%clk 0:00:07]} 34. Kh1 {[%clk 0:00:08]}  Qxa2 {[%clk 0:00:07]} 35. Rfg1 {[%clk 0:00:07]}  Qe2 {[%clk 0:00:05]} 36. Qxe2 {[%clk 0:00:06]}  Nxe2 {[%clk 0:00:06]} 37. Rxd3 {[%clk 0:00:06]}  Nxg1 {[%clk 0:00:06]} 38. Kxg1 {[%clk 0:00:07]}  Re7 {[%clk 0:00:06]} 39. Ra3 {[%clk 0:00:06]}  e4 {[%clk 0:00:06]} 40. Kf2 {[%clk 0:00:07]}  Re5 {[%clk 0:00:06]} 41. Rxa6 {[%clk 0:00:06]}  Rxf5+ {[%clk 0:00:06]} 42. Ke3 {[%clk 0:00:07]}  Re5 {[%clk 0:00:07]} 43. Rc6 {[%clk 0:00:06]}  Re7 {[%clk 0:00:07]} 44. h5 {[%clk 0:00:07]}  Kf7 {[%clk 0:00:07]} 45. Rc5 {[%clk 0:00:06]}  Ke8 {[%clk 0:00:07]} 46. Ra5 {[%clk 0:00:05]}  Kd7 {[%clk 0:00:07]} 47. Rd5+ {[%clk 0:00:06]}  Kc6 {[%clk 0:00:07]} 48. Ra5 {[%clk 0:00:06]}  Re5 {[%clk 0:00:06]} 49. Ra8 {[%clk 0:00:05]}  Rxh5 {[%clk 0:00:06]} 50. Kxe4 {[%clk 0:00:06]}  Re5+ {[%clk 0:00:07]} 51. Kf4 {[%clk 0:00:05]}  h5 {[%clk 0:00:07]} 52. Rg8 {[%clk 0:00:06]}  g5+ {[%clk 0:00:07]} 53. Kf3 {[%clk 0:00:05]}  Rf5+ {[%clk 0:00:07]} 54. Kg2 {[%clk 0:00:05]}  h4 {[%clk 0:00:07]} 55. Rg6 {[%clk 0:00:05]}  Kd5 {[%clk 0:00:07]} 56. Kh3 {[%clk 0:00:05]}  c5 {[%clk 0:00:08]} 57. Kg4 {[%clk 0:00:04]}  Rf4+ {[%clk 0:00:08]} 58. Kh5 {[%clk 0:00:04]}  h3 {[%clk 0:00:08]} 59. Rh6 {[%clk 0:00:03]}  Rh4+ {[%clk 0:00:08]} 60. Kg6 {[%clk 0:00:04]}  Rxh6+ {[%clk 0:00:09]} 61. Kf5 {[%clk 0:00:03]}  h2 {[%clk 0:00:10]} 62. Kg4 {[%clk 0:00:03]}  h1=Q {[%clk 0:00:10]} 63. Kf5 {[%clk 0:00:04]}  Qe4# {[%clk 0:00:11]} 0-1


[Site "https://www.chess.com"]

[Event "Titled Tuesday Blitz February 01 B 2022"]
[White "Garcia Martin, Marta"]
[Black "Bortnyk, Olexandr"]
[WhiteFideId "32084030"]
[BlackFideId "14120828"]
[WhiteElo "2102"]
[BlackElo "2723"]
[Result "0-1"]
[Round "04"]
[TimeControl "180+1"]
[Date "2022.02.01"]
[WhiteClock "0:00:14"]
[BlackClock "0:00:14"]

1. Nf3 {[%clk 0:02:55]}  Nf6 {[%clk 0:02:55]} 2. e3 {[%clk 0:02:56]}  d5 {[%clk 0:02:46]} 3. c4 {[%clk 0:02:49]}  c6 {[%clk 0:02:46]} 4. Nc3 {[%clk 0:02:48]}  e6 {[%clk 0:02:42]} 5. b3 {[%clk 0:02:48]}  Be7 {[%clk 0:02:37]} 6. Bb2 {[%clk 0:02:48]}  O-O {[%clk 0:02:38]} 7. Qc2 {[%clk 0:02:48]}  b6 {[%clk 0:02:36]} 8. Be2 {[%clk 0:02:47]}  Na6 {[%clk 0:02:34]} 9. a3 {[%clk 0:02:46]}  Nc5 {[%clk 0:02:35]} 10. g4 {[%clk 0:02:36]}  Nxg4 {[%clk 0:02:25]} 11. Rg1 {[%clk 0:02:35]}  Nf6 {[%clk 0:02:20]} 12. b4 {[%clk 0:02:23]}  Ncd7 {[%clk 0:02:13]} 13. Bd3 {[%clk 0:01:49]}  e5 {[%clk 0:01:50]} 14. cxd5 {[%clk 0:01:25]}  cxd5 {[%clk 0:01:51]} 15. Ng5 {[%clk 0:01:01]}  e4 {[%clk 0:01:42]} 16. Ncxe4 {[%clk 0:01:01]}  dxe4 {[%clk 0:01:32]} 17. Bxe4 {[%clk 0:01:00]}  Nxe4 {[%clk 0:00:53]} 18. Qxe4 {[%clk 0:00:49]}  Bxg5 {[%clk 0:00:52]} 19. Qxa8 {[%clk 0:00:46]}  Bf6 {[%clk 0:00:49]} 20. d4 {[%clk 0:00:38]}  Qc7 {[%clk 0:00:48]} 21. Rc1 {[%clk 0:00:34]}  Qxh2 {[%clk 0:00:46]} 22. Rg2 {[%clk 0:00:30]}  Qb8 {[%clk 0:00:33]} 23. Qxb8 {[%clk 0:00:25]}  Nxb8 {[%clk 0:00:34]} 24. e4 {[%clk 0:00:21]}  g6 {[%clk 0:00:22]} 25. f3 {[%clk 0:00:20]}  Bh3 {[%clk 0:00:19]} 26. Rgc2 {[%clk 0:00:20]}  Bg5 {[%clk 0:00:15]} 27. Rd1 {[%clk 0:00:19]}  Bd7 {[%clk 0:00:13]} 28. Bc1 {[%clk 0:00:18]}  Bh4+ {[%clk 0:00:13]} 29. Kf1 {[%clk 0:00:13]}  Ba4 {[%clk 0:00:14]} 30. Kg2 {[%clk 0:00:14]}  Bxc2 {[%clk 0:00:14]} 0-1


[Site "https://www.chess.com"]

[Event "Titled Tuesday Blitz February 01 B 2022"]
[White "Hasangatin, Ramil"]
[Black "Naroditsky, Daniel"]
[WhiteFideId "4122160"]
[BlackFideId "2026961"]
[WhiteElo "2375"]
[BlackElo "2608"]
[Result "0-1"]
[Round "04"]
[TimeControl "180+1"]
[Date "2022.02.01"]
[WhiteClock "0:00:13"]
[BlackClock "0:00:52"]

1. e4 {[%clk 0:03:00]}  c5 {[%clk 0:03:00]} 2. Nf3 {[%clk 0:03:01]}  d6 {[%clk 0:03:01]} 3. d4 {[%clk 0:03:00]}  cxd4 {[%clk 0:03:02]} 4. Qxd4 {[%clk 0:03:01]}  a6 {[%clk 0:03:02]} 5. Be3 {[%clk 0:03:01]}  Nf6 {[%clk 0:03:02]} 6. Nc3 {[%clk 0:03:00]}  Nc6 {[%clk 0:03:02]} 7. Qb6 {[%clk 0:03:01]}  Qxb6 {[%clk 0:03:03]} 8. Bxb6 {[%clk 0:03:01]}  Bg4 {[%clk 0:03:04]} 9. Be2 {[%clk 0:03:01]}  e6 {[%clk 0:03:04]} 10. Nd2 {[%clk 0:02:52]}  Bxe2 {[%clk 0:03:02]} 11. Kxe2 {[%clk 0:02:49]}  Rc8 {[%clk 0:03:03]} 12. Rhd1 {[%clk 0:02:45]}  Ne5 {[%clk 0:02:57]} 13. f3 {[%clk 0:02:35]}  Be7 {[%clk 0:02:57]} 14. Rac1 {[%clk 0:02:35]}  O-O {[%clk 0:02:58]} 15. Ncb1 {[%clk 0:02:22]}  d5 {[%clk 0:02:56]} 16. Nc3 {[%clk 0:02:13]}  Bb4 {[%clk 0:02:47]} 17. Bd4 {[%clk 0:02:09]}  Ned7 {[%clk 0:02:38]} 18. e5 {[%clk 0:01:57]}  Ne8 {[%clk 0:02:35]} 19. Nb3 {[%clk 0:01:47]}  f6 {[%clk 0:02:32]} 20. exf6 {[%clk 0:01:41]}  gxf6 {[%clk 0:02:31]} 21. a3 {[%clk 0:01:38]}  Be7 {[%clk 0:02:31]} 22. Na4 {[%clk 0:01:12]}  Nd6 {[%clk 0:02:31]} 23. Nac5 {[%clk 0:01:09]}  Nxc5 {[%clk 0:02:31]} 24. Bxc5 {[%clk 0:01:04]}  Rfd8 {[%clk 0:02:25]} 25. Bxd6 {[%clk 0:01:01]}  Bxd6 {[%clk 0:02:25]} 26. g3 {[%clk 0:01:01]}  Kf7 {[%clk 0:02:23]} 27. Nd4 {[%clk 0:00:56]}  b5 {[%clk 0:02:24]} 28. c3 {[%clk 0:00:56]}  h5 {[%clk 0:02:22]} 29. f4 {[%clk 0:00:55]}  h4 {[%clk 0:02:21]} 30. Kf3 {[%clk 0:00:55]}  Bc5 {[%clk 0:02:18]} 31. Nb3 {[%clk 0:00:48]}  Bb6 {[%clk 0:02:16]} 32. g4 {[%clk 0:00:48]}  e5 {[%clk 0:02:14]} 33. h3 {[%clk 0:00:47]}  Rc4 {[%clk 0:02:13]} 34. fxe5 {[%clk 0:00:43]}  fxe5 {[%clk 0:02:14]} 35. Rf1 {[%clk 0:00:43]}  Kg6 {[%clk 0:02:14]} 36. Kg2 {[%clk 0:00:41]}  Be3 {[%clk 0:02:07]} 37. Rcd1 {[%clk 0:00:33]}  Bf4 {[%clk 0:01:56]} 38. Nd2 {[%clk 0:00:28]}  Rc7 {[%clk 0:01:49]} 39. Nf3 {[%clk 0:00:28]}  Bg3 {[%clk 0:01:49]} 40. Rd2 {[%clk 0:00:26]}  Rf7 {[%clk 0:01:41]} 41. Ng1 {[%clk 0:00:22]}  Rxf1 {[%clk 0:01:39]} 42. Kxf1 {[%clk 0:00:23]}  Bf4 {[%clk 0:01:33]} 43. Rd1 {[%clk 0:00:21]}  e4 {[%clk 0:01:32]} 44. Ne2 {[%clk 0:00:18]}  Be5 {[%clk 0:01:29]} 45. Nd4 {[%clk 0:00:18]}  Bxd4 {[%clk 0:01:04]} 46. Rxd4 {[%clk 0:00:18]}  Kg5 {[%clk 0:01:05]} 47. Kf2 {[%clk 0:00:18]}  Kf4 {[%clk 0:01:05]} 48. a4 {[%clk 0:00:13]}  Ke5 {[%clk 0:00:52]} 49. axb5 {[%clk 0:00:13]}  axb5 {[%clk 0:00:52]} 50. Rb4 {[%clk 0:00:13]}  Rf8+ {[%clk 0:00:53]} 51. Kg2 {[%clk 0:00:13]}  e3 {[%clk 0:00:52]} 0-1


[Site "https://www.chess.com"]

[Event "Titled Tuesday Blitz February 01 B 2022"]
[White "Jones, Gawain C B"]
[Black "Novikov, Evgenij"]
[WhiteFideId "409561"]
[BlackFideId "4125380"]
[WhiteElo "2657"]
[BlackElo "2242"]
[Result "1-0"]
[Round "04"]
[TimeControl "180+1"]
[Date "2022.02.01"]
[WhiteClock "0:00:34"]
[BlackClock "0:00:06"]

1. Nf3 {[%clk 0:03:00]}  d5 {[%clk 0:02:54]} 2. g3 {[%clk 0:03:00]}  Nf6 {[%clk 0:02:53]} 3. Bg2 {[%clk 0:03:00]}  e6 {[%clk 0:02:54]} 4. O-O {[%clk 0:03:00]}  Be7 {[%clk 0:02:55]} 5. c4 {[%clk 0:03:00]}  c6 {[%clk 0:02:54]} 6. b3 {[%clk 0:02:57]}  O-O {[%clk 0:02:54]} 7. Bb2 {[%clk 0:02:58]}  Nbd7 {[%clk 0:02:53]} 8. d3 {[%clk 0:02:57]}  a5 {[%clk 0:02:52]} 9. Nc3 {[%clk 0:02:56]}  b6 {[%clk 0:02:47]} 10. Qc2 {[%clk 0:02:54]}  Bb7 {[%clk 0:02:45]} 11. e4 {[%clk 0:02:54]}  Qb8 {[%clk 0:02:40]} 12. Rfe1 {[%clk 0:02:53]}  dxe4 {[%clk 0:02:31]} 13. dxe4 {[%clk 0:02:52]}  e5 {[%clk 0:02:31]} 14. Nh4 {[%clk 0:02:50]}  Re8 {[%clk 0:02:22]} 15. Nf5 {[%clk 0:02:48]}  Bf8 {[%clk 0:02:21]} 16. Qd2 {[%clk 0:02:30]}  Nc5 {[%clk 0:02:00]} 17. Rad1 {[%clk 0:02:29]}  a4 {[%clk 0:01:43]} 18. b4 {[%clk 0:02:24]}  a3 {[%clk 0:01:22]} 19. bxc5 {[%clk 0:02:23]}  axb2 {[%clk 0:01:22]} 20. cxb6 {[%clk 0:02:22]}  Ba6 {[%clk 0:01:18]} 21. Qxb2 {[%clk 0:02:16]}  Bxc4 {[%clk 0:01:16]} 22. Bf1 {[%clk 0:01:57]}  Bxf1 {[%clk 0:00:45]} 23. Rxf1 {[%clk 0:01:57]}  Ra6 {[%clk 0:00:46]} 24. Rb1 {[%clk 0:01:45]}  Bc5 {[%clk 0:00:40]} 25. b7 {[%clk 0:01:36]}  g6 {[%clk 0:00:40]} 26. Ne3 {[%clk 0:01:32]}  Bd4 {[%clk 0:00:33]} 27. Nc2 {[%clk 0:01:24]}  Re7 {[%clk 0:00:20]} 28. Rfd1 {[%clk 0:01:12]}  Ra7 {[%clk 0:00:14]} 29. Nxd4 {[%clk 0:01:08]}  exd4 {[%clk 0:00:14]} 30. Rxd4 {[%clk 0:01:08]}  Raxb7 {[%clk 0:00:15]} 31. Rb4 {[%clk 0:01:04]}  Rxb4 {[%clk 0:00:14]} 32. Qxb4 {[%clk 0:01:05]}  Qa7 {[%clk 0:00:12]} 33. Qd6 {[%clk 0:00:56]}  Ng4 {[%clk 0:00:12]} 34. Qb8+ {[%clk 0:00:49]}  Kg7 {[%clk 0:00:10]} 35. Qxa7 {[%clk 0:00:47]}  Rxa7 {[%clk 0:00:11]} 36. Rb6 {[%clk 0:00:46]}  Ne5 {[%clk 0:00:10]} 37. f4 {[%clk 0:00:45]}  Nf3+ {[%clk 0:00:10]} 38. Kf2 {[%clk 0:00:45]}  Nd4 {[%clk 0:00:11]} 39. Ke3 {[%clk 0:00:44]}  c5 {[%clk 0:00:11]} 40. a4 {[%clk 0:00:41]}  h5 {[%clk 0:00:06]} 41. e5 {[%clk 0:00:38]}  h4 {[%clk 0:00:06]} 42. gxh4 {[%clk 0:00:34]} 1-0


[Site "https://www.chess.com"]

[Event "Titled Tuesday Blitz February 01 B 2022"]
[White "Kamsky, Gata"]
[Black "Sjugirov, Sanan"]
[WhiteFideId "2000024"]
[BlackFideId "4189302"]
[WhiteElo "2645"]
[BlackElo "2602"]
[Result "1-0"]
[Round "04"]
[TimeControl "180+1"]
[Date "2022.02.01"]
[WhiteClock "0:00:37"]
[BlackClock "0:00:05"]

1. d4 {[%clk 0:03:00]}  Nf6 {[%clk 0:02:55]} 2. Nf3 {[%clk 0:03:00]}  d5 {[%clk 0:02:54]} 3. Bf4 {[%clk 0:02:59]}  c5 {[%clk 0:02:49]} 4. e3 {[%clk 0:02:59]}  Qb6 {[%clk 0:02:45]} 5. Nc3 {[%clk 0:02:42]}  c4 {[%clk 0:02:42]} 6. Rb1 {[%clk 0:02:35]}  e6 {[%clk 0:02:41]} 7. a3 {[%clk 0:02:24]}  Qa5 {[%clk 0:02:30]} 8. Qd2 {[%clk 0:02:22]}  Nc6 {[%clk 0:02:27]} 9. Be2 {[%clk 0:02:15]}  Nh5 {[%clk 0:02:13]} 10. Be5 {[%clk 0:02:12]}  f6 {[%clk 0:02:09]} 11. Bg3 {[%clk 0:02:10]}  Nxg3 {[%clk 0:02:06]} 12. hxg3 {[%clk 0:02:10]}  f5 {[%clk 0:01:52]} 13. Nh4 {[%clk 0:02:09]}  Ne7 {[%clk 0:01:34]} 14. g4 {[%clk 0:02:00]}  g6 {[%clk 0:01:28]} 15. f4 {[%clk 0:01:59]}  Bg7 {[%clk 0:01:17]} 16. Bf3 {[%clk 0:01:19]}  Qd8 {[%clk 0:01:01]} 17. g3 {[%clk 0:01:04]}  Rb8 {[%clk 0:00:57]} 18. Nd1 {[%clk 0:01:01]}  b5 {[%clk 0:00:55]} 19. c3 {[%clk 0:01:01]}  a5 {[%clk 0:00:52]} 20. Nf2 {[%clk 0:01:01]}  Qd6 {[%clk 0:00:48]} 21. Bg2 {[%clk 0:00:57]}  b4 {[%clk 0:00:44]} 22. axb4 {[%clk 0:00:57]}  axb4 {[%clk 0:00:45]} 23. Ra1 {[%clk 0:00:55]}  O-O {[%clk 0:00:40]} 24. Nf3 {[%clk 0:00:53]}  Bd7 {[%clk 0:00:28]} 25. gxf5 {[%clk 0:00:50]}  exf5 {[%clk 0:00:25]} 26. Ne5 {[%clk 0:00:50]}  Be6 {[%clk 0:00:23]} 27. O-O {[%clk 0:00:47]}  Rb7 {[%clk 0:00:22]} 28. Nh3 {[%clk 0:00:43]}  Rfb8 {[%clk 0:00:15]} 29. Ra2 {[%clk 0:00:41]}  Nc6 {[%clk 0:00:09]} 30. Ng5 {[%clk 0:00:38]}  Nxe5 {[%clk 0:00:05]} 31. dxe5 {[%clk 0:00:37]} 1-0


[Site "https://www.chess.com"]

[Event "Titled Tuesday Blitz February 01 B 2022"]
[White "Lenderman, Aleksandr"]
[Black "Paravyan, David"]
[WhiteFideId "2021285"]
[BlackFideId "4194985"]
[WhiteElo "2651"]
[BlackElo "2569"]
[Result "1-0"]
[Round "04"]
[TimeControl "180+1"]
[Date "2022.02.01"]
[WhiteClock "0:01:10"]
[BlackClock "0:00:24"]

1. d4 {[%clk 0:03:00]}  Nf6 {[%clk 0:02:58]} 2. c4 {[%clk 0:03:00]}  g6 {[%clk 0:02:58]} 3. g3 {[%clk 0:02:59]}  c6 {[%clk 0:02:52]} 4. Bg2 {[%clk 0:02:56]}  d5 {[%clk 0:02:52]} 5. Nf3 {[%clk 0:02:56]}  Bg7 {[%clk 0:02:51]} 6. O-O {[%clk 0:02:56]}  O-O {[%clk 0:02:52]} 7. Qb3 {[%clk 0:02:55]}  a5 {[%clk 0:02:37]} 8. Nc3 {[%clk 0:02:52]}  a4 {[%clk 0:02:34]} 9. Nxa4 {[%clk 0:02:48]}  dxc4 {[%clk 0:02:34]} 10. Qc2 {[%clk 0:02:48]}  Bf5 {[%clk 0:02:32]} 11. Qd1 {[%clk 0:02:45]}  Nbd7 {[%clk 0:02:31]} 12. Nc3 {[%clk 0:02:43]}  Qa5 {[%clk 0:02:05]} 13. Nd2 {[%clk 0:02:42]}  b5 {[%clk 0:01:47]} 14. Bxc6 {[%clk 0:02:40]}  Rab8 {[%clk 0:01:44]} 15. e4 {[%clk 0:02:16]}  Bh3 {[%clk 0:01:42]} 16. e5 {[%clk 0:02:17]}  b4 {[%clk 0:01:18]} 17. exf6 {[%clk 0:02:15]}  Nxf6 {[%clk 0:01:19]} 18. Nce4 {[%clk 0:02:10]}  Bxf1 {[%clk 0:01:18]} 19. Nxf6+ {[%clk 0:02:10]}  Bxf6 {[%clk 0:01:16]} 20. Qxf1 {[%clk 0:02:10]}  c3 {[%clk 0:01:14]} 21. Nb3 {[%clk 0:02:09]}  Qb6 {[%clk 0:01:12]} 22. Bg2 {[%clk 0:02:05]}  Bxd4 {[%clk 0:01:11]} 23. Nxd4 {[%clk 0:02:02]}  Qxd4 {[%clk 0:01:12]} 24. Be3 {[%clk 0:02:02]}  Qf6 {[%clk 0:01:09]} 25. bxc3 {[%clk 0:02:02]}  bxc3 {[%clk 0:01:10]} 26. a4 {[%clk 0:01:56]}  c2 {[%clk 0:01:10]} 27. Rc1 {[%clk 0:01:54]}  Qf5 {[%clk 0:00:52]} 28. a5 {[%clk 0:01:28]}  Qxa5 {[%clk 0:00:47]} 29. Rxc2 {[%clk 0:01:28]}  Rfc8 {[%clk 0:00:47]} 30. Rxc8+ {[%clk 0:01:26]}  Rxc8 {[%clk 0:00:48]} 31. h4 {[%clk 0:01:25]}  Rd8 {[%clk 0:00:35]} 32. Bf3 {[%clk 0:01:25]}  Qf5 {[%clk 0:00:33]} 33. Kg2 {[%clk 0:01:24]}  Qd3 {[%clk 0:00:28]} 34. Qa1 {[%clk 0:01:24]}  Qd6 {[%clk 0:00:24]} 35. h5 {[%clk 0:01:17]}  Qf6 {[%clk 0:00:24]} 36. Qa5 {[%clk 0:01:11]}  Qf5 {[%clk 0:00:24]} 37. Qxd8+ {[%clk 0:01:10]} 1-0


[Site "https://www.chess.com"]

[Event "Titled Tuesday Blitz February 01 B 2022"]
[White "Mladenovic, Stefan"]
[Black "Ibarra Jerez, Jose Carlos"]
[WhiteFideId "942227"]
[BlackFideId "2226332"]
[WhiteElo "2355"]
[BlackElo "2626"]
[Result "0-1"]
[Round "04"]
[TimeControl "180+1"]
[Date "2022.02.01"]
[WhiteClock "0:00:01"]
[BlackClock "0:00:19"]

1. d4 {[%clk 0:02:58]}  Nf6 {[%clk 0:02:59]} 2. Nf3 {[%clk 0:02:50]}  g6 {[%clk 0:02:59]} 3. Bf4 {[%clk 0:02:49]}  Bg7 {[%clk 0:02:58]} 4. e3 {[%clk 0:02:50]}  O-O {[%clk 0:02:59]} 5. Be2 {[%clk 0:02:50]}  d6 {[%clk 0:02:59]} 6. O-O {[%clk 0:02:50]}  c5 {[%clk 0:03:00]} 7. c3 {[%clk 0:02:50]}  Be6 {[%clk 0:03:00]} 8. Nbd2 {[%clk 0:02:49]}  Qb6 {[%clk 0:03:00]} 9. Ng5 {[%clk 0:02:49]}  Bd7 {[%clk 0:02:53]} 10. Nc4 {[%clk 0:02:48]}  Qc7 {[%clk 0:02:53]} 11. a4 {[%clk 0:02:48]}  h6 {[%clk 0:02:49]} 12. Nf3 {[%clk 0:02:47]}  Nh5 {[%clk 0:02:49]} 13. Bg3 {[%clk 0:02:40]}  Nxg3 {[%clk 0:02:47]} 14. hxg3 {[%clk 0:02:41]}  Nc6 {[%clk 0:02:41]} 15. Re1 {[%clk 0:02:39]}  d5 {[%clk 0:02:39]} 16. Na3 {[%clk 0:02:15]}  cxd4 {[%clk 0:02:28]} 17. exd4 {[%clk 0:02:05]}  a6 {[%clk 0:02:24]} 18. Bd3 {[%clk 0:02:02]}  e6 {[%clk 0:02:21]} 19. Qe2 {[%clk 0:01:58]}  Rab8 {[%clk 0:02:14]} 20. g4 {[%clk 0:01:55]}  Qf4 {[%clk 0:02:11]} 21. Ne5 {[%clk 0:01:46]}  Nxe5 {[%clk 0:02:10]} 22. dxe5 {[%clk 0:01:45]}  Bxa4 {[%clk 0:01:57]} 23. g3 {[%clk 0:01:44]}  Qg5 {[%clk 0:01:57]} 24. f4 {[%clk 0:01:39]}  Qe7 {[%clk 0:01:56]} 25. f5 {[%clk 0:01:39]}  exf5 {[%clk 0:01:53]} 26. gxf5 {[%clk 0:01:40]}  Qg5 {[%clk 0:01:48]} 27. f6 {[%clk 0:01:33]}  Qxg3+ {[%clk 0:01:43]} 28. Kh1 {[%clk 0:01:33]}  Bxf6 {[%clk 0:01:14]} 29. exf6 {[%clk 0:01:30]}  Rfe8 {[%clk 0:01:15]} 30. Qd2 {[%clk 0:01:24]}  Qh3+ {[%clk 0:01:02]} 31. Kg1 {[%clk 0:01:22]}  Qg3+ {[%clk 0:00:49]} 32. Kh1 {[%clk 0:01:22]}  Bc6 {[%clk 0:00:39]} 33. Rxe8+ {[%clk 0:00:15]}  Rxe8 {[%clk 0:00:38]} 34. Bf1 {[%clk 0:00:16]}  Re5 {[%clk 0:00:26]} 35. Bg2 {[%clk 0:00:16]}  d4 {[%clk 0:00:22]} 36. Rd1 {[%clk 0:00:06]}  Rg5 {[%clk 0:00:19]} 37. Re1 {[%clk 0:00:02]}  Bxg2+ {[%clk 0:00:19]} 38. Kg1 {[%clk 0:00:01]}  Bf3+ {[%clk 0:00:19]} 39. Kf1 {[%clk 0:00:01]}  Qg1# {[%clk 0:00:19]} 0-1


[Site "https://www.chess.com"]

[Event "Titled Tuesday Blitz February 01 B 2022"]
[White "Muradli, Mahammad"]
[Black "LikeWater"]
[WhiteFideId "13409301"]
[WhiteElo "2645"]
[BlackElo "2621"]
[Result "1-0"]
[Round "04"]
[TimeControl "180+1"]
[Date "2022.02.01"]
[WhiteClock "0:00:42"]
[BlackClock "0:00:02"]

1. Nf3 {[%clk 0:03:00]}  Nf6 {[%clk 0:02:59]} 2. d4 {[%clk 0:02:54]}  b6 {[%clk 0:02:58]} 3. e3 {[%clk 0:02:53]}  Bb7 {[%clk 0:02:58]} 4. b3 {[%clk 0:02:54]}  g6 {[%clk 0:02:58]} 5. Bb2 {[%clk 0:02:55]}  Bg7 {[%clk 0:02:59]} 6. Nbd2 {[%clk 0:02:55]}  O-O {[%clk 0:03:00]} 7. Bd3 {[%clk 0:02:56]}  c5 {[%clk 0:03:00]} 8. Qe2 {[%clk 0:02:55]}  Nd5 {[%clk 0:02:53]} 9. a3 {[%clk 0:02:54]}  cxd4 {[%clk 0:02:53]} 10. Nxd4 {[%clk 0:02:44]}  Nc7 {[%clk 0:02:31]} 11. O-O-O {[%clk 0:02:41]}  e5 {[%clk 0:02:21]} 12. N4f3 {[%clk 0:02:39]}  Qe7 {[%clk 0:02:18]} 13. e4 {[%clk 0:02:35]}  Nc6 {[%clk 0:02:16]} 14. Nc4 {[%clk 0:02:25]}  d5 {[%clk 0:02:01]} 15. exd5 {[%clk 0:02:26]}  Nxd5 {[%clk 0:02:02]} 16. g3 {[%clk 0:02:19]}  b5 {[%clk 0:01:44]} 17. Ne3 {[%clk 0:02:00]}  Nxe3 {[%clk 0:01:13]} 18. Qxe3 {[%clk 0:02:00]}  b4 {[%clk 0:01:14]} 19. a4 {[%clk 0:01:59]}  Rfe8 {[%clk 0:00:54]} 20. Rhe1 {[%clk 0:01:53]}  Rac8 {[%clk 0:00:50]} 21. Kb1 {[%clk 0:01:49]}  Kh8 {[%clk 0:00:49]} 22. h4 {[%clk 0:01:47]}  f5 {[%clk 0:00:41]} 23. Bb5 {[%clk 0:01:14]}  e4 {[%clk 0:00:37]} 24. Nd4 {[%clk 0:01:11]}  Red8 {[%clk 0:00:12]} 25. Bxc6 {[%clk 0:01:06]}  Bxc6 {[%clk 0:00:12]} 26. h5 {[%clk 0:01:06]}  Bd5 {[%clk 0:00:11]} 27. h6 {[%clk 0:00:57]}  Bf6 {[%clk 0:00:10]} 28. Rd2 {[%clk 0:00:54]}  Kg8 {[%clk 0:00:10]} 29. Red1 {[%clk 0:00:50]}  Bf7 {[%clk 0:00:10]} 30. Nc6 {[%clk 0:00:47]}  Rxc6 {[%clk 0:00:05]} 31. Rxd8+ {[%clk 0:00:44]}  Qxd8 {[%clk 0:00:06]} 32. Rxd8+ {[%clk 0:00:45]}  Bxd8 {[%clk 0:00:07]} 33. Qxa7 {[%clk 0:00:44]}  Rd6 {[%clk 0:00:04]} 34. Qc5 {[%clk 0:00:42]}  Rd1+ {[%clk 0:00:04]} 35. Ka2 {[%clk 0:00:42]}  Rd2 {[%clk 0:00:02]} 36. Bg7 {[%clk 0:00:42]} 1-0


[Site "https://www.chess.com"]